bitfinex-derivatives/quotes_SOLF0:USTF0_20241203
["timestamp","ask_amount","ask_price","bid_price","bid_amount"]
[1733260320167,7.13024369,228.17,227.98,7.13024369]
[1733260320168,7.13024369,228.06,227.98,7.13024369]
[1733260320368,2.12,228.05,227.98,7.13024369]
[1733260321068,4.3113,228.05,227.98,7.13024369]
[1733260321268,2.12,228.04,228.0,7.13024369]
[1733260321564,2.12,228.04,228.01,7.13024369]
[1733260321968,2.1911,228.08,228.01,7.13024369]
[1733260322267,2.12,228.07,228.02,2.1915]
[1733260322461,9.32114369,228.09,228.02,2.1915]
[1733260322665,2.12,228.08,228.03,7.13024369]
[1733260322865,2.1907,228.11,228.04,2.1913]
[1733260323066,2.12,228.09,228.05,7.13024369]
[1733260323261,2.12,228.11,228.05,7.13024369]
[1733260323667,2.12,228.11,228.07,7.13024369]
[1733260323868,2.12,228.11,228.05,7.13024369]
[1733260324064,2.12,228.11,227.98,1.2936]
[1733260324271,9.32114369,228.1,228.03,9.32164369]
[1733260324464,7.13024369,228.1,227.98,1.2936]
[1733260324870,7.13024369,228.1,228.01,7.13024369]
[1733260325170,7.13024369,228.09,228.01,9.32184369]
[1733260325569,2.191,228.08,228.02,2.1915]
[1733260325769,2.12,228.08,228.03,7.13024369]
[1733260326471,2.16597075,228.2,228.05,7.13024369]
[1733260326672,7.13024369,228.13,228.05,7.13024369]
[1733260327068,2.12,228.12,228.07,2.191]
[1733260327265,2.12,228.12,228.05,7.13024369]
[1733260327771,4.3106,228.12,228.07,2.191]
[1733260328169,2.12,228.12,228.09,2.1909]
[1733260328364,7.13024369,228.14,228.05,7.13024369]
[1733260328570,7.13024369,228.14,228.07,7.13024369]
[1733260329271,2.12,228.15,228.0,2.12]
[1733260329272,9.25024369,228.15,228.0,2.12]
[1733260329571,9.32074369,228.13,228.05,7.13024369]
[1733260329971,7.13024369,228.13,228.08,2.1909]
[1733260330272,7.13024369,228.11,228.04,7.13024369]
[1733260330774,7.13024369,228.13,228.04,7.13024369]
[1733260331472,9.32084369,228.13,228.06,2.1911]
[1733260331774,7.13024369,228.13,228.06,2.1911]
[1733260332073,2.1906,228.12,228.06,2.1911]
[1733260332968,2.1906,228.12,228.04,7.13024369]
[1733260333173,2.1906,228.12,228.07,2.191]
[1733260333575,7.13024369,228.13,228.09,2.1909]
[1733260334770,2.12,228.15,228.09,2.1909]
[1733260334970,9.32064369,228.14,228.09,2.1909]
[1733260336074,7.13024369,228.14,228.11,2.1906]
[1733260336770,7.13024369,228.12,228.08,2.1909]
[1733260336971,7.13024369,228.12,228.06,1.3906]
[1733260337577,9.32084369,228.12,228.07,2.191]
[1733260337772,2.12,228.15,228.06,1.3906]
[1733260338277,7.13024369,228.12,228.06,1.3906]
[1733260339177,9.32084369,228.12,228.07,2.191]
[1733260339373,7.13024369,228.12,228.06,1.3906]
[1733260339775,7.13024369,228.1,228.04,1.397]
[1733260340377,2.1909,228.09,228.04,3.5883]
[1733260340876,7.13024369,228.09,228.05,2.1912]
[1733260341476,7.13024369,228.09,228.04,3.5883]
[1733260341877,7.13024369,228.09,228.04,1.397]
[1733260343078,7.13024369,228.09,228.05,2.1912]
[1733260344676,2.1907,228.12,228.06,2.1911]
[1733260344979,7.13024369,228.12,228.04,1.397]
[1733260346076,2.1907,228.11,228.04,1.397]
[1733260347082,2.1907,228.11,228.06,2.1911]
[1733260347283,7.13024369,228.14,228.07,7.13024369]
[1733260347481,7.13024369,228.14,228.1,2.1908]
[1733260350385,9.32064369,228.14,228.1,2.1908]
[1733260350588,9.32064369,228.14,228.11,2.1907]
[1733260350788,9.32064369,228.14,228.08,1.398]
[1733260351584,9.32064369,228.14,228.1,2.1907]
[1733260351889,7.13024369,228.17,228.09,7.13024369]
[1733260352687,7.13024369,228.17,228.15,2.1903]
[1733260352889,7.13024369,228.17,228.09,7.13024369]
[1733260353191,7.13024369,228.18,228.11,7.13024369]
[1733260353782,2.12,228.21,228.11,7.13024369]
[1733260353983,7.13024369,228.19,228.11,7.13024369]
[1733260354592,7.13024369,228.19,228.15,2.1902]
[1733260355291,2.12,228.25,228.13,7.13024369]
[1733260355491,7.13024369,228.2,228.16,2.1902]
[1733260356488,2.1898,228.21,228.15,2.1903]
[1733260356891,7.13024369,228.2,228.15,2.1903]
[1733260357091,2.1898,228.21,228.15,2.1903]
[1733260357297,7.13024369,228.2,228.15,2.1903]
[1733260357687,2.1898,228.21,228.16,2.1902]
[1733260357889,7.13024369,228.2,228.16,2.1902]
[1733260359297,2.1898,228.21,228.16,2.1902]
[1733260359495,7.13024369,228.2,228.16,2.1902]
[1733260360101,2.1898,228.21,228.16,2.1902]
[1733260360499,7.13024369,228.2,228.16,2.1902]
[1733260360901,7.13024369,228.21,228.15,7.13024369]
[1733260363102,7.13024369,228.21,228.17,2.19]
[1733260364996,9.31984369,228.22,228.17,2.19]
[1733260365301,7.13024369,228.23,228.2,2.1897]
[1733260366096,2.1892,228.27,228.17,8.43804369]
[1733260366297,7.13024369,228.25,228.21,2.1897]
[1733260366904,7.13024369,228.22,227.66,1.93119638]
[1733260367202,2.12,228.28,227.46,43.9377]
[1733260367203,7.13024369,228.15,228.08,7.13024369]
[1733260367606,7.13024369,228.15,228.1,2.1907]
[1733260368003,7.13024369,228.15,228.05,2.6243]
[1733260368200,7.13024369,228.13,228.09,2.1908]
[1733260369102,9.32054369,228.15,228.09,2.1908]
[1733260369707,2.12,228.23,228.12,7.13024369]
[1733260370205,7.13024369,228.19,228.12,7.13024369]
[1733260370607,9.32014369,228.19,228.13,2.1904]
[1733260371504,9.32014369,228.19,228.12,7.13024369]
[1733260371708,9.32014369,228.19,228.14,2.1904]
[1733260373209,7.13024369,228.19,228.1,2.12]
[1733260373409,2.1901,228.18,228.12,2.1905]
[1733260375008,2.1901,228.18,228.13,2.1905]
[1733260377710,7.13024369,228.19,228.11,7.13024369]
[1733260377907,9.32014369,228.19,228.14,2.1903]
[1733260384117,2.19,228.18,228.14,2.1903]
[1733260384618,7.13024369,228.2,228.14,2.1903]
[1733260384820,2.1899,228.19,228.14,2.1903]
[1733260385221,9.32004369,228.2,228.12,7.13024369]
[1733260386522,9.32004369,228.2,228.15,2.1903]
[1733260387722,9.32004369,228.2,228.14,2.1903]
[1733260387922,9.32004369,228.2,228.12,7.13024369]
[1733260388323,9.32004369,228.2,228.15,2.1902]
[1733260390623,9.32004369,228.2,228.16,2.1902]
[1733260391822,2.1898,228.2,228.16,2.1902]
[1733260392220,9.32004369,228.2,228.16,2.1902]
[1733260392420,2.1898,228.2,228.16,2.1902]
[1733260392619,9.32004369,228.2,228.16,2.1902]
[1733260392825,2.1899,228.19,228.16,2.1902]
[1733260394124,2.1,228.21,228.12,7.13024369]
[1733260394322,9.32004369,228.2,228.16,2.1901]
[1733260395321,7.13024369,228.2,228.16,2.1901]
[1733260396225,2.1899,228.19,228.16,2.1901]
[1733260396427,7.13024369,228.2,228.17,2.19]
[1733260396927,9.32004369,228.2,228.17,2.19]
[1733260397128,7.13024369,228.2,228.17,2.1901]
[1733260397427,9.32024369,228.18,228.13,1.2658]
[1733260398423,9.32024369,228.18,228.14,2.1903]
[1733260400127,2.19,228.18,228.14,2.1903]
[1733260400329,9.32024369,228.18,228.14,2.1903]
[1733260401129,2.1,228.21,228.02,7.13024369]
[1733260401329,7.13024369,228.1,228.02,7.13024369]
[1733260401529,7.13024369,228.1,228.05,2.1912]
[1733260402030,7.13024369,228.1,228.02,7.13024369]
[1733260402222,2.1907,228.11,228.04,2.1913]
[1733260402424,7.13024369,228.1,228.04,7.13024369]
[1733260402827,7.13024369,228.12,228.04,7.13024369]
[1733260403432,9.32084369,228.12,228.04,7.13024369]
[1733260404829,9.32084369,228.12,228.05,2.1912]
[1733260404830,2.1907,228.11,228.05,2.1912]
[1733260405026,7.13024369,228.12,228.04,7.13024369]
[1733260406026,9.32094369,228.12,228.06,2.1911]
[1733260406532,7.13024369,228.12,228.04,7.13024369]
[1733260406725,2.1907,228.11,228.05,2.1912]
[1733260407332,9.32104369,228.1,228.03,2.1913]
[1733260407533,7.13024369,228.1,228.01,7.13024369]
[1733260408731,2.191,228.08,228.01,7.13024369]
[1733260409128,7.13024369,228.1,228.01,7.13024369]
[1733260409332,2.1909,228.09,228.03,2.1914]
[1733260409532,2.1909,228.09,228.03,9.32164369]
[1733260409734,2.1,228.13,227.98,2.6604]
[1733260410033,2.1,228.13,228.01,9.32184369]
[1733260410034,2.1911,228.07,228.01,9.32184369]
[1733260410235,2.1,228.13,228.05,7.13024369]
[1733260410435,2.1907,228.11,228.05,7.13024369]
[1733260410636,2.1907,228.11,228.03,2.1]
[1733260410935,2.1907,228.11,228.05,7.13024369]
[1733260411134,2.1907,228.11,228.05,9.32144369]
[1733260412134,2.1907,228.11,228.06,2.1911]
[1733260412335,2.1904,228.15,228.1,7.13024369]
[1733260413434,2.1904,228.15,228.06,2.5962]
[1733260413634,2.1904,228.15,228.11,7.13024369]
[1733260415432,7.13024369,228.12,227.84,5.3864]
[1733260415636,2.1,228.18,227.84,5.3864]
[1733260415637,7.13024369,228.06,227.98,7.13024369]
[1733260415838,7.13024369,228.06,227.96,2.1]
[1733260416031,2.1,228.09,227.97,7.13024369]
[1733260416234,2.1,228.14,228.03,7.13024369]
[1733260416431,43.73127783,228.28,228.09,7.13024369]
[1733260416634,41.04,228.58,228.22,7.13024369]
[1733260416833,7.13024369,228.35,228.26,7.13024369]
[1733260417137,7.13024369,228.31,228.24,1.3242]
[1733260417337,7.13024369,228.35,228.26,7.13024369]
[1733260417536,2.1881,228.38,228.25,2.1892]
[1733260417736,41.04,228.58,228.24,1.3242]
[1733260417737,2.22561704,228.51,228.3,7.13024369]
[1733260417940,7.13024369,228.47,228.39,7.13024369]
[1733260418140,4.507,228.49,228.39,9.31824369]
[1733260418440,7.13024369,228.52,228.43,7.13024369]
[1733260418641,2.32,228.61,228.41,2.32]
[1733260418841,7.13024369,228.54,228.45,7.13024369]
[1733260419136,10.9023,229.19,228.53,7.13024369]
[1733260419340,10.9023,229.19,228.66,7.13024369]
[1733260419341,7.13024369,228.75,228.66,7.13024369]
[1733260419542,11.10277532,228.8,228.64,11.10277532]
[1733260419842,41.04,229.01,228.73,11.10277532]
[1733260420035,11.10277532,228.94,228.79,11.10277532]
[1733260420241,13.28557532,228.94,228.8,2.32]
[1733260420440,111.89171698,229.02,228.85,11.10277532]
[1733260420641,11.10277532,229.06,228.91,11.10277532]
[1733260420841,11.10277532,229.06,228.88,11.10277532]
[1733260421038,4.5486226,229.13,228.88,2.32]
[1733260421338,2.1811,229.12,228.98,11.10277532]
[1733260421538,2.32,229.16,228.99,2.32]
[1733260421841,17.70904297,229.16,228.99,2.32]
[1733260422043,2.32,229.15,228.99,2.32]
[1733260422239,2.32,229.33,229.06,17.70904297]
[1733260422541,41.0,229.49,229.19,17.70904297]
[1733260422741,17.70904297,229.39,229.2,2.32]
[1733260423043,17.70904297,229.31,229.11,17.70904297]
[1733260423246,17.70904297,229.27,229.12,2.32]
[1733260423739,17.70904297,229.27,229.07,17.70904297]
[1733260423942,17.70904297,229.27,229.08,2.32]
[1733260424141,2.32,229.26,229.08,2.32]
[1733260424341,2.32,229.26,229.07,17.70904297]
[1733260424639,17.70904297,229.11,228.83,40.96]
[1733260424843,2.1816,229.06,228.83,40.96]
[1733260425044,2.1816,229.06,228.92,3.8968]
[1733260425243,2.179,229.33,229.02,35.41808594]
[1733260425447,6.5217,229.88,229.15,17.70904297]
[1733260425448,17.70904297,229.37,229.15,17.70904297]
[1733260425747,4.3479,229.87,229.35,35.41808594]
[1733260425950,17.70904297,229.81,229.55,17.70904297]
[1733260426143,13.14,230.05,229.6,17.70904297]
[1733260426341,2.175,229.76,229.6,17.70904297]
[1733260426646,2.94,229.75,229.65,17.70904297]
[1733260426848,2.1748,229.78,229.65,17.70904297]
[1733260427045,2.94,229.77,229.65,17.70904297]
[1733260427245,40.9,229.91,229.53,2.94]
[1733260427445,2.1752,229.74,229.38,2.94]
[1733260427643,34.13796773,230.05,229.71,17.70904297]
[1733260427842,2.23027723,230.28,229.86,17.70904297]
[1733260428044,17.70904297,230.2,229.98,17.70904297]
[1733260428245,17.70904297,230.27,230.03,17.70904297]
[1733260428449,3.48,230.36,230.12,17.70904297]
[1733260428843,17.70904297,230.34,230.08,17.70904297]
[1733260429150,17.70904297,230.32,229.97,5.67927128]
[1733260429351,3.48,230.31,230.1,17.70904297]
[1733260429552,3.46,230.3,230.1,31.08945908]
[1733260429746,40.9,230.37,229.87,5.3]
[1733260429946,31.08945908,230.24,230.02,31.08945908]
[1733260430147,2.1714,230.13,229.87,1.0]
[1733260430352,31.08945908,229.98,229.87,1.0]
[1733260430651,31.08945908,230.02,229.87,1.0]
[1733260430652,31.08945908,229.89,229.87,1.0]
[1733260430854,31.08945908,229.88,229.32,31.08945908]
[1733260431154,31.08945908,229.8,229.49,31.08945908]
[1733260431450,4.54,229.95,229.62,31.08945908]
[1733260431655,31.08945908,229.92,229.7,31.08945908]
[1733260431854,2.1747,229.79,229.7,31.08945908]
[1733260432055,31.08945908,229.92,229.7,31.08945908]
[1733260432254,4.3404,230.27,229.82,31.08945908]
[1733260432556,2.1729,229.98,229.9,31.08945908]
[1733260432755,31.08945908,230.52,229.94,31.08945908]
[1733260433051,1.3278,230.62,230.12,31.08945908]
[1733260433251,5.04,230.6,230.18,31.08945908]
[1733260433554,31.08945908,230.31,229.89,5.3]
[1733260433851,1.0,230.54,230.23,31.08945908]
[1733260434051,31.08945908,230.48,230.23,31.08945908]
[1733260434252,5.3,230.79,230.39,31.08945908]
[1733260434469,40.8,231.11,230.49,31.08945908]
[1733260434656,31.08945908,230.71,230.44,31.08945908]
[1733260434851,5.3,230.84,230.5,31.08945908]
[1733260435058,31.08945908,230.77,230.5,31.08945908]
[1733260435458,31.08945908,230.72,230.45,32.08945908]
[1733260435659,2.1696,230.33,229.86,40.74]
[1733260435856,5.3,230.6,230.32,31.08945908]
[1733260436056,31.08945908,230.6,230.32,31.08945908]
[1733260436359,40.74,230.71,230.28,31.08945908]
[1733260436360,31.08945908,230.71,230.44,31.08945908]
[1733260436759,31.08945908,230.56,230.33,1.0]
[1733260437055,31.08945908,230.46,230.24,31.08945908]
[1733260437359,31.08945908,230.53,230.28,31.08945908]
[1733260437559,31.08945908,230.57,230.33,31.08945908]
[1733260437759,2.168,230.5,230.33,31.08945908]
[1733260437960,31.08945908,230.57,230.33,31.08945908]
[1733260438562,31.08945908,230.48,230.23,31.08945908]
[1733260438856,2.1712,230.16,230.04,31.08945908]
[1733260439058,31.08945908,230.23,230.0,31.08945908]
[1733260439455,5.52,230.24,230.04,31.08945908]
[1733260439755,5.52,230.24,230.0,31.08945908]
[1733260439960,5.52,230.24,229.94,5.52]
[1733260439961,2.1715,230.13,229.96,31.08945908]
[1733260440158,31.08945908,230.19,229.96,31.08945908]
[1733260440363,31.08945908,230.15,229.92,31.08945908]
[1733260440865,31.08945908,230.02,229.82,2.6336]
[1733260441075,36.60945908,230.02,229.79,31.08945908]
[1733260441258,31.08945908,229.9,229.71,31.08945908]
[1733260441455,31.08945908,229.86,229.63,31.08945908]
[1733260441657,31.08945908,229.86,229.62,31.08945908]
[1733260441863,31.08945908,229.86,229.63,31.08945908]
[1733260442061,5.52,229.9,229.63,31.08945908]
[1733260442257,31.08945908,229.85,229.62,36.86945908]
[1733260442458,31.08945908,229.81,229.58,31.08945908]
[1733260442656,31.08945908,229.81,229.44,31.08945908]
[1733260442657,2.1751,229.75,229.53,31.08945908]
[1733260442958,5.78,229.74,229.57,31.08945908]
[1733260443158,2.176,229.66,229.57,31.08945908]
[1733260443358,31.08945908,229.73,229.53,31.08945908]
[1733260443559,31.08945908,229.77,229.57,31.08945908]
[1733260443758,31.08945908,229.77,229.53,31.08945908]
[1733260443962,31.08945908,229.77,229.57,31.08945908]
[1733260444158,5.78,229.78,229.57,31.08945908]
[1733260444464,31.08945908,229.76,229.57,31.08945908]
[1733260445159,31.08945908,229.76,229.53,31.08945908]
[1733260445359,31.08945908,229.64,229.44,31.08945908]
[1733260445562,31.08945908,229.64,229.4,31.08945908]
[1733260446158,31.08945908,229.44,229.02,6.32]
[1733260446361,2.1794,229.29,229.21,31.08945908]
[1733260446561,37.40945908,229.44,229.02,6.32]
[1733260446562,31.08945908,229.36,229.13,31.08945908]
[1733260447059,31.08945908,229.32,229.09,31.08945908]
[1733260447359,31.08945908,229.23,229.01,31.08945908]
[1733260447660,2.181,229.12,229.05,31.08945908]
[1733260447864,31.08945908,229.22,229.01,31.08945908]
[1733260448360,31.08945908,229.14,228.93,31.08945908]
[1733260448564,6.62,229.13,228.93,31.08945908]
[1733260448765,6.62,229.21,229.02,31.08945908]
[1733260448964,31.08945908,229.18,228.98,31.08945908]
[1733260449359,31.08945908,229.18,228.94,31.08945908]
[1733260449765,2.181,229.12,228.98,31.08945908]
[1733260449966,6.62,229.2,229.02,31.08945908]
[1733260450161,31.08945908,229.3,229.07,12.80945908]
[1733260450365,31.08945908,229.2,228.72,31.08945908]
[1733260450560,1.0,229.19,228.92,31.08945908]
[1733260450764,1.0,229.19,229.0,31.08945908]
[1733260450967,31.08945908,229.24,229.0,31.08945908]
[1733260451369,2.1809,229.14,228.96,31.08945908]
[1733260451664,31.08945908,229.16,228.92,31.08945908]
[1733260451869,31.08945908,229.2,229.0,31.08945908]
[1733260452165,31.08945908,229.56,229.12,31.08945908]
[1733260452367,31.08945908,229.39,229.16,31.08945908]
[1733260452571,31.08945908,229.35,229.12,31.08945908]
[1733260452772,31.08945908,229.31,229.08,31.08945908]
[1733260453073,31.08945908,229.39,229.17,31.08945908]
[1733260453274,45.60361558,229.47,229.21,31.08945908]
[1733260453477,2.1778,229.46,229.25,31.08945908]
[1733260453676,31.08945908,229.39,229.16,31.08945908]
[1733260454174,33.26795908,229.39,229.16,31.08945908]
[1733260455075,33.26745908,229.44,229.2,31.08945908]
[1733260455375,31.08945908,229.44,229.24,31.08945908]
[1733260455674,33.26745908,229.44,229.24,31.08945908]
[1733260455869,31.08945908,229.44,229.24,31.08945908]
[1733260456072,31.08945908,229.48,229.24,31.08945908]
[1733260456271,31.08945908,229.52,229.28,31.08945908]
[1733260456473,7.46,229.66,229.2,71.90945908]
[1733260456474,31.08945908,229.56,229.36,31.08945908]
[1733260456769,7.46,229.66,229.4,31.08945908]
[1733260456770,2.1767,229.57,229.4,31.08945908]
[1733260456975,31.08945908,229.64,229.4,31.08945908]
[1733260457175,7.46,229.75,229.45,31.08945908]
[1733260457375,31.08945908,229.6,229.44,7.46]
[1733260457577,31.08945908,229.6,229.41,31.08945908]
[1733260457879,31.08945908,229.65,229.45,31.08945908]
[1733260458468,31.08945908,229.65,229.45,33.26735908]
[1733260458776,31.08945908,229.73,229.49,31.08945908]
[1733260458977,31.08945908,229.77,229.57,31.08945908]
[1733260459472,31.08945908,229.77,229.46,1.0]
[1733260459677,31.08945908,229.78,229.56,31.08945908]
[1733260460369,45.29919724,229.83,229.61,2.1763]
[1733260460577,31.08945908,229.81,229.61,2.1763]
[1733260460771,31.08945908,229.77,229.53,7.78]
[1733260460974,2.1751,229.75,229.55,2.1769]
[1733260461175,45.29919724,229.83,229.6,31.08945908]
[1733260461471,45.29919724,229.83,229.61,2.1763]
[1733260461870,31.08945908,229.81,229.6,31.08945908]
[1733260462073,2.175,229.76,229.57,2.1767]
[1733260462271,7.78,229.91,229.64,31.08945908]
[1733260462470,31.08945908,229.82,229.53,7.78]
[1733260462674,31.08945908,229.82,229.6,31.08945908]
[1733260463069,31.08945908,229.82,229.53,7.78]
[1733260463070,31.08945908,229.71,229.47,1.0]
[1733260463277,31.08945908,229.67,229.45,31.08945908]
[1733260463670,2.1762,229.63,229.45,31.08945908]
[1733260463975,31.08945908,229.63,229.41,31.08945908]
[1733260464172,45.28568727,229.83,229.46,31.08945908]
[1733260464472,31.08945908,229.74,229.51,31.08945908]
[1733260464671,2.1756,229.7,229.52,2.1772]
[1733260464978,31.08945908,229.78,229.55,31.08945908]
[1733260465179,40.78,229.89,229.68,31.08945908]
[1733260465479,31.08945908,229.86,229.64,31.08945908]
[1733260465780,31.08945908,229.82,229.59,31.08945908]
[1733260466480,31.08945908,229.78,229.59,31.08945908]
[1733260466681,2.1756,229.7,229.55,31.08945908]
[1733260466878,31.08945908,229.74,229.55,31.08945908]
[1733260467278,31.08945908,229.74,229.51,31.08945908]
[1733260467476,31.08945908,229.7,229.51,31.08945908]
[1733260467676,45.28463084,229.83,229.59,31.08945908]
[1733260467876,2.1744,229.82,229.63,33.26555908]
[1733260468077,9.9544,229.82,229.63,31.08945908]
[1733260468283,9.9544,229.82,229.69,31.08945908]
[1733260468477,2.1745,229.81,229.69,31.08945908]
[1733260468878,45.28463084,229.83,229.65,31.08945908]
[1733260469077,2.1748,229.78,229.65,31.08945908]
[1733260469278,7.78,229.77,229.65,31.08945908]
[1733260469684,7.78,229.77,229.61,31.08945908]
[1733260469984,45.28463084,229.83,229.61,31.08945908]
[1733260470179,48.56,229.82,229.61,31.08945908]
[1733260470376,31.08945908,229.81,229.61,31.08945908]
[1733260470778,31.08945908,229.89,229.65,31.08945908]
[1733260470979,7.78,229.88,229.69,31.08945908]
[1733260471284,2.1748,229.78,229.65,31.08945908]
[1733260471485,31.08945908,229.85,229.65,31.08945908]
[1733260471783,2.1744,229.82,229.65,31.08945908]
[1733260471985,31.08945908,229.85,229.65,31.08945908]
[1733260472881,31.08945908,229.73,229.3,7.76]
[1733260473082,31.08945908,229.73,229.51,31.08945908]
[1733260473287,7.76,229.72,229.51,31.08945908]
[1733260473483,2.1756,229.7,229.54,2.177]
[1733260473680,2.1756,229.7,229.55,31.08945908]
[1733260474081,2.1757,229.68,229.55,31.08945908]
[1733260474282,31.08945908,229.69,229.51,31.08945908]
[1733260474587,40.78,230.14,229.68,62.17891816]
[1733260474781,2.16941684,230.3,229.96,31.08945908]
[1733260474983,2.16941684,230.3,229.84,1.3561]
[1733260474984,31.08945908,230.16,229.84,1.3561]
[1733260475180,31.08945908,230.08,229.85,31.08945908]
[1733260475380,31.08945908,230.0,229.81,31.08945908]
[1733260475782,2.1732,229.95,229.81,31.08945908]
[1733260475982,8.04,229.94,229.77,31.08945908]
[1733260476186,8.04,229.93,229.73,31.08945908]
[1733260476485,31.08945908,229.92,229.69,33.70955908]
[1733260477286,2.1744,229.82,229.69,31.08945908]
[1733260477883,31.08945908,229.88,229.69,31.08945908]
[1733260478182,8.04,229.87,229.73,31.08945908]
[1733260478586,8.04,229.88,229.73,31.08945908]
[1733260478881,2.174,229.87,229.73,31.08945908]
[1733260479184,8.04,229.87,229.73,31.08945908]
[1733260479388,2.1742,229.85,229.73,31.08945908]
[1733260479589,8.04,229.87,229.73,31.08945908]
[1733260479789,8.04,229.87,229.69,31.08945908]
[1733260480083,8.04,229.87,229.73,31.08945908]
[1733260480585,45.22584735,230.16,229.86,31.08945908]
[1733260480891,31.08945908,230.27,230.04,31.08945908]
[1733260481089,8.04,230.26,230.04,31.08945908]
[1733260481690,2.1713,230.15,230.04,31.08945908]
[1733260481891,71.84945908,230.23,230.0,31.08945908]
[1733260482485,71.84945908,230.23,229.83,2.5568]
[1733260482486,31.08945908,230.14,229.83,2.5568]
[1733260482687,31.08945908,229.96,229.71,31.08945908]
[1733260483089,8.04,229.98,229.79,31.08945908]
[1733260483389,31.08945908,230.0,229.79,31.08945908]
[1733260483789,2.1734,229.93,229.79,31.08945908]
[1733260484291,31.08945908,230.0,229.77,2.1748]
[1733260484496,31.08945908,229.96,229.75,31.08945908]
[1733260484987,2.1734,229.93,229.78,2.1747]
[1733260485188,2.1734,229.93,229.75,31.08945908]
[1733260485394,1.0,230.14,229.92,31.08945908]
[1733260485693,8.73156195,230.54,229.92,31.08945908]
[1733260485694,31.08945908,230.32,230.04,31.08945908]
[1733260485898,31.08945908,230.24,230.0,31.08945908]
[1733260486090,2.1711,230.17,230.0,31.08945908]
[1733260486292,2.1711,230.17,229.93,1.3825]
[1733260486293,6.4976,230.73,230.13,31.08945908]
[1733260486489,142.51484557,230.64,230.25,31.08945908]
[1733260486696,2.1689,230.4,230.25,33.25965908]
[1733260486994,31.08945908,230.35,230.11,31.08945908]
[1733260487190,2.1698,230.31,230.17,2.171]
[1733260487496,31.08945908,230.44,230.23,31.08945908]
[1733260487697,31.08945908,230.4,230.19,31.08945908]
[1733260487897,2.1694,230.35,230.19,31.08945908]
[1733260488293,31.08945908,230.4,230.15,31.08945908]
[1733260488493,2.17,230.29,230.15,31.08945908]
[1733260488696,31.08945908,230.36,230.15,31.08945908]
[1733260489194,31.08945908,230.4,230.19,31.08945908]
[1733260489394,70.66538649,230.64,230.28,31.08945908]
[1733260489692,31.08945908,230.53,230.31,31.08945908]
[1733260489892,31.08945908,230.49,230.29,1.2554]
[1733260490095,31.08945908,230.59,230.35,31.08945908]
[1733260490496,31.08945908,230.63,230.4,31.08945908]
[1733260490694,31.08945908,230.63,230.4,33.25825908]
[1733260490897,31.08945908,230.63,230.4,31.08945908]
[1733260491090,70.66538649,230.64,230.44,31.08945908]
[1733260491295,31.08945908,230.69,230.47,31.08945908]
[1733260491493,31.08945908,230.61,230.41,1.0]
[1733260491691,2.1667,230.64,230.44,33.25795908]
[1733260491892,31.08945908,230.69,230.44,31.08945908]
[1733260492094,31.08945908,230.69,230.48,31.08945908]
[1733260492295,2.167,230.6,230.48,31.08945908]
[1733260492496,40.68,230.92,230.53,31.08945908]
[1733260492691,31.08945908,230.75,230.53,31.08945908]
[1733260492894,2.1666,230.65,230.53,31.08945908]
[1733260493193,31.08945908,230.71,230.49,31.08945908]
[1733260493399,31.08945908,230.71,230.45,31.08945908]
[1733260493596,31.08945908,230.75,230.5,31.08945908]
[1733260494500,2.1669,230.62,230.5,31.08945908]
[1733260494699,31.08945908,230.71,230.5,31.08945908]
[1733260494899,31.08945908,230.67,230.46,31.08945908]
[1733260495198,31.08945908,230.67,230.41,1.2785]
[1733260495199,31.08945908,230.63,230.41,1.2785]
[1733260495699,40.66,230.85,230.49,31.08945908]
[1733260495902,40.66,231.04,230.54,31.08945908]
[1733260496101,40.66,231.04,230.52,31.08945908]
[1733260496102,2.1664,230.68,230.59,31.08945908]
[1733260496499,31.08945908,230.86,230.59,31.08945908]
[1733260496897,4.3234,231.17,230.64,31.08945908]
[1733260497097,40.66,231.06,230.82,31.08945908]
[1733260497298,31.08945908,230.99,230.78,31.08945908]
[1733260497498,40.66,231.06,230.78,31.08945908]
[1733260497700,31.08945908,231.04,230.78,31.08945908]
[1733260498403,31.08945908,230.99,230.78,31.08945908]
[1733260499406,2.11821806,231.3,230.86,31.08945908]
[1733260499597,15.8653,231.52,231.12,31.08945908]
[1733260499799,56.49460353,231.58,231.17,31.08945908]
[1733260499800,31.08945908,231.41,231.17,31.08945908]